bitfinex-derivatives/quotes_BTCF0:USTF0_20250101
["timestamp","ask_amount","ask_price","bid_price","bid_amount"]
[1735739191531,0.004,93867.0,93866.0,0.41417]
[1735739195630,0.004,93867.0,93866.0,0.42667527]
[1735739203431,0.004,93867.0,93866.0,0.36656247]
[1735739204638,0.003,93867.0,93866.0,0.36656247]
[1735739204938,0.002,93867.0,93866.0,0.36656247]
[1735739205338,0.001,93867.0,93866.0,0.36656247]
[1735739205529,0.002,93867.0,93866.0,0.36656247]
[1735739214538,0.001,93867.0,93866.0,0.37156247]
[1735739214743,0.053366,93873.0,93872.0,0.053367]
[1735739215044,0.053366,93873.0,93872.0,0.03165365]
[1735739216335,0.055366,93873.0,93872.0,0.03165365]
[1735739217731,0.057366,93873.0,93872.0,0.03165365]
[1735739219035,0.004,93873.0,93872.0,0.03165365]
[1735739223541,0.24017995,93880.0,93866.0,0.36656247]
[1735739223742,0.053364,93877.0,93876.0,0.053363]
[1735739223937,0.24017995,93880.0,93876.0,0.053363]
[1735739224253,0.29354295,93880.0,93879.0,0.053363]
[1735739224753,0.29454295,93880.0,93879.0,0.053363]
[1735739226042,0.29554295,93880.0,93879.0,0.054363]
[1735739226650,0.29754295,93880.0,93879.0,0.054363]
[1735739226853,0.004,93880.0,93879.0,0.054363]
[1735739227542,0.002,93880.0,93879.0,0.415163]
[1735739227946,0.002,93880.0,93879.0,0.42712266]
[1735739228340,0.002,93880.0,93879.0,1.92712266]
[1735739234554,0.01188434,93906.0,93879.0,1.87375966]
[1735739234749,0.00159766,93907.0,93906.0,0.053348]
[1735739235961,0.0327,93926.0,93925.0,0.053337]
[1735739236146,0.0327,93926.0,93925.0,0.414137]
[1735739237249,0.0417,93926.0,93925.0,0.415137]
[1735739237849,0.0417,93926.0,93925.0,0.416137]
[1735739238344,0.0417,93926.0,93925.0,0.415137]
[1735739238550,0.0417,93926.0,93925.0,0.416137]
[1735739239447,0.0417,93926.0,93925.0,0.415137]
[1735739239651,0.0407,93926.0,93925.0,0.416137]
[1735739240652,0.0377,93926.0,93925.0,0.415137]
[1735739241255,0.005,93926.0,93925.0,0.415137]
[1735739241455,1e-06,93926.0,93925.0,0.415137]
[1735739241853,1e-06,93926.0,93925.0,1.915137]
[1735739246153,0.003,93926.0,93925.0,1.915137]
[1735739247063,0.00159724,93945.0,93944.0,0.053326]
[1735739247256,0.00159724,93945.0,93944.0,0.414126]
[1735739247657,0.13287982,94581.0,93971.0,0.053311]
[1735739247658,0.0317,93972.0,93971.0,0.053311]
[1735739249153,0.0317,93972.0,93971.0,0.054311]
[1735739249473,0.0317,93972.0,93971.0,0.001]
[1735739249860,0.0317,93972.0,93952.0,0.00159648]
[1735739249861,0.6925,93972.0,93952.0,0.00159648]
[1735739250057,0.3608,93964.0,93952.0,0.00159648]
[1735739250267,0.3608,93964.0,93944.0,0.3618]
[1735739250462,0.053321,93953.0,93944.0,0.3608]
[1735739250667,0.0329,93952.0,93951.0,0.053322]
[1735739250966,0.063,93952.0,93951.0,0.053322]
[1735739251860,0.063,93952.0,93951.0,0.054322]
[1735739252059,0.063,93952.0,93951.0,0.03242692]
[1735739253067,0.067,93952.0,93951.0,0.03242692]
[1735739253462,0.0989,93952.0,93951.0,0.03242692]
[1735739255975,0.0959,93952.0,93951.0,0.03142692]
[1735739258578,0.0949,93952.0,93951.0,0.03142692]
[1735739263181,0.0949,93952.0,93944.0,0.72264]
[1735739263375,0.0949,93952.0,93951.0,0.053322]
[1735739264084,0.148222,93952.0,93951.0,0.053322]
[1735739271097,0.148222,93952.0,93951.0,0.2444803]
[1735739271802,0.148222,93952.0,93951.0,0.053322]
[1735739273795,0.150222,93952.0,93951.0,0.053322]
[1735739277300,0.150222,93952.0,93951.0,0.04179472]
[1735739281299,0.120122,93952.0,93951.0,0.04179472]
[1735739284306,0.087222,93952.0,93951.0,0.04179472]
[1735739286415,0.087222,93952.0,93951.0,0.03333499]
[1735739288810,0.087222,93952.0,93951.0,0.02154398]
[1735739291324,0.055322,93952.0,93951.0,0.02154398]
[1735739297325,0.002,93952.0,93951.0,0.02154398]
[1735739299719,0.002,93952.0,93951.0,0.03268972]
[1735739303828,0.053316,93962.0,93952.0,0.053321]
[1735739304023,0.053314,93965.0,93964.0,0.3608]
[1735739305230,0.054314,93965.0,93964.0,0.001]
[1735739305629,0.054314,93965.0,93953.0,0.3608]
[1735739305929,0.05332,93954.0,93953.0,0.3608]
[1735739308231,0.05332,93954.0,93953.0,0.414121]
[1735739308820,0.05332,93954.0,93953.0,0.053321]
[1735739310521,0.05332,93954.0,93953.0,0.414121]
[1735739311729,0.053318,93959.0,93958.0,0.053317]
[1735739312128,0.053315,93964.0,93963.0,0.053315]
[1735739312342,0.053315,93964.0,93963.0,0.414115]
[1735739313131,0.053312,93970.0,93969.0,0.053311]
[1735739313534,0.053312,93970.0,93969.0,0.04309437]
[1735739313740,0.053312,93970.0,93969.0,0.02812274]
[1735739314435,0.054312,93970.0,93969.0,0.02912274]
[1735739314634,0.057312,93970.0,93969.0,0.02912274]
[1735739316331,0.004,93970.0,93969.0,0.02912274]
[1735739318247,0.057311,93970.0,93969.0,0.02912274]
[1735739321743,0.057311,93970.0,93969.0,0.001]
[1735739324147,0.057311,93970.0,93969.0,0.00082071]
[1735739330658,0.08376498,93975.0,93969.0,0.00082071]
[1735739331060,0.053311,93970.0,93969.0,0.00082071]
[1735739331961,0.053312,93969.0,93968.0,0.053312]
[1735739333057,0.054312,93969.0,93968.0,0.053312]
[1735739333263,0.055312,93969.0,93968.0,0.054312]
[1735739341575,0.002,93969.0,93968.0,0.054312]
[1735739356777,0.001,93969.0,93968.0,0.053312]
[1735739357485,0.08376498,93975.0,93974.0,0.053309]
[1735739357889,0.08376498,93975.0,93974.0,0.04374214]
[1735739358090,0.08376498,93975.0,93974.0,0.02891998]
[1735739358591,0.13707398,93975.0,93974.0,0.02891998]
[1735739359385,0.13707398,93975.0,93974.0,0.02991998]
[1735739359891,0.13807398,93975.0,93974.0,0.02991998]
[1735739362995,0.08476498,93975.0,93974.0,0.02991998]
[1735739363397,0.44556498,93975.0,93974.0,0.001]
[1735739363698,0.44556498,93975.0,93955.0,0.3608]
[1735739363996,0.44556498,93975.0,93964.0,0.053315]
[1735739363997,0.053314,93966.0,93964.0,0.053315]
[1735739366701,0.054314,93966.0,93964.0,0.053315]
[1735739367593,0.06571904,93966.0,93964.0,0.053315]
[1735739369599,0.054314,93966.0,93964.0,0.053315]
[1735739370100,0.053314,93966.0,93964.0,0.053315]
[1735739370300,0.053314,93966.0,93964.0,0.054315]
[1735739370602,0.08376498,93975.0,93973.0,0.05331]
[1735739370803,0.08376498,93975.0,93974.0,0.3608]
[1735739370997,0.08376498,93975.0,93974.0,0.3936]
[1735739372496,0.08476498,93975.0,93974.0,0.3936]
[1735739372903,0.08376498,93975.0,93974.0,0.3936]
[1735739373200,0.08476498,93975.0,93974.0,0.3946]
[1735739374403,0.08476498,93975.0,93974.0,0.447909]
[1735739374897,0.08476498,93975.0,93974.0,0.446909]
[1735739375096,0.08476498,93975.0,93974.0,0.447909]
[1735739386307,0.08476498,93975.0,93974.0,0.415109]
[1735739386308,0.13807398,93975.0,93974.0,0.415109]
[1735739390106,0.13807398,93975.0,93974.0,0.054309]
[1735739394414,0.14928804,93975.0,93974.0,0.054309]
[1735739401620,0.14928804,93975.0,93974.0,0.001]
[1735739402923,0.14928804,93975.0,93974.0,0.3618]
[1735739408414,0.14928804,93975.0,93974.0,0.001]
[1735739411422,0.13807398,93975.0,93974.0,0.001]
[1735739416029,0.13807398,93975.0,93974.0,0.00048811]
[1735739421438,0.13707398,93975.0,93974.0,0.00048811]
[1735739421735,0.14007398,93975.0,93974.0,0.00148811]
[1735739422127,0.053315,93963.0,93962.0,0.3925]
[1735739423237,0.056315,93963.0,93962.0,0.3925]
[1735739424331,0.003,93963.0,93962.0,0.3925]
[1735739424532,0.003,93963.0,93962.0,0.445816]
[1735739425636,0.003,93963.0,93962.0,0.448816]
[1735739426323,0.053313,93967.0,93964.0,0.053314]
[1735739428238,0.053309,93974.0,93964.0,0.053314]
[1735739428436,0.053313,93967.0,93964.0,0.1248714]
[1735739428632,0.053314,93966.0,93964.0,0.055314]
[1735739429140,0.053314,93966.0,93964.0,0.057314]
[1735739429727,0.053314,93966.0,93964.0,0.056314]
[1735739430844,0.053314,93966.0,93964.0,0.06719095]
[1735739431032,0.053314,93966.0,93964.0,0.056314]
[1735739435149,0.053314,93966.0,93964.0,0.003]
[1735739435348,0.053314,93966.0,93965.0,0.053314]
[1735739436659,0.053314,93966.0,93965.0,0.054314]
[1735739466064,0.053311,93971.0,93970.0,0.05331]
[1735739467366,0.055311,93971.0,93970.0,0.05331]
[1735739472163,0.002,93971.0,93970.0,0.05331]
[1735739472366,0.001,93971.0,93970.0,0.05331]
[1735739474362,0.001,93971.0,93970.0,0.41411]
[1735739482273,0.001,93971.0,93970.0,0.71411]
[1735739482571,0.001,93971.0,93970.0,0.41411]
[1735739493277,0.001,93971.0,93970.0,1.91411]
[1735739506087,0.13313347,94452.0,93970.0,1.91411]
[1735739506286,0.053296,93997.0,93996.0,0.053296]
[1735739507884,0.055296,93997.0,93996.0,0.054296]
[1735739509393,0.12910765,93997.0,93996.0,0.054296]
[1735739519404,0.12910765,93997.0,93996.0,0.04526077]
[1735739524390,0.12810765,93997.0,93996.0,0.04526077]
[1735739524906,0.12710765,93997.0,93996.0,0.04426077]
[1735739525098,0.12810765,93997.0,93996.0,0.04526077]
[1735739529502,0.06540765,93997.0,93996.0,0.04526077]
[1735739530902,0.01211165,93997.0,93996.0,0.04526077]
[1735739533907,0.06540765,93997.0,93996.0,0.04526077]
[1735739538895,0.001,93997.0,93996.0,0.04526077]
[1735739544905,0.054296,93997.0,93996.0,0.001]
[1735739550511,0.054296,93997.0,93970.0,0.3608]
[1735739550512,0.001,93997.0,93970.0,0.3608]
[1735739550713,0.3608,93987.0,93968.0,0.086012]
[1735739550914,0.053312,93969.0,93968.0,0.086012]
[1735739551110,0.053312,93969.0,93968.0,0.0327]
[1735739551812,0.053312,93969.0,93960.0,0.03]
[1735739551813,0.053312,93968.0,93960.0,0.03]
[1735739552216,0.049312,93968.0,93960.0,0.03]
[1735739552707,0.046312,93968.0,93960.0,0.03]
[1735739553108,0.046312,93968.0,93967.0,0.23877318]
[1735739553917,0.046312,93968.0,93967.0,0.23977318]
[1735739554105,0.046312,93968.0,93967.0,0.24177318]
[1735739556624,0.053322,93952.0,93935.0,0.3608]
[1735739556811,0.053331,93936.0,93935.0,0.0317]
[1735739557420,0.053335,93928.0,93926.0,0.053336]
[1735739558327,0.053337,93924.0,93923.0,0.0317]
[1735739558622,0.048337,93924.0,93923.0,0.0317]
[1735739559616,0.040337,93924.0,93923.0,0.0317]
[1735739559813,0.040337,93924.0,93923.0,0.0377]
[1735739560221,0.041337,93924.0,93923.0,0.0427]
[1735739561523,0.041337,93924.0,93923.0,0.011]
[1735739567030,0.041337,93924.0,93923.0,0.064338]
[1735739568733,0.041337,93924.0,93923.0,0.011]
[1735739573933,0.041337,93924.0,93923.0,0.064338]
[1735739574528,0.001,93924.0,93923.0,0.064338]
[1735739580836,0.001,93924.0,93923.0,0.08155043]
[1735739583040,0.00159724,93949.0,93936.0,0.053331]
[1735739583249,0.00159724,93949.0,93948.0,0.3608]
[1735739583463,0.05492124,93949.0,93948.0,0.414124]
[1735739583638,0.00159724,93949.0,93948.0,0.414124]
[1735739585235,0.053322,93951.0,93950.0,0.053323]
[1735739588340,0.057322,93951.0,93950.0,0.053323]
[1735739604254,0.057322,93951.0,93950.0,0.06869346]
[1735739606860,0.057322,93951.0,93950.0,0.053323]
[1735739607258,0.053323,93949.0,93948.0,0.3608]
[1735739607457,0.053323,93949.0,93948.0,0.414124]
[1735739608347,0.055323,93949.0,93948.0,0.414124]
[1735739609862,0.055323,93949.0,93948.0,0.415124]
[1735739611369,0.053319,93957.0,93948.0,0.415124]
[1735739611661,0.053323,93949.0,93948.0,0.415124]
[1735739612464,0.053323,93949.0,93948.0,0.414124]
[1735739612666,0.053323,93949.0,93948.0,0.415124]
[1735739613155,0.055323,93949.0,93948.0,0.3618]
[1735739614759,0.002,93949.0,93948.0,0.775924]
[1735739614955,0.00196,93949.0,93948.0,0.775924]
[1735739615166,0.053311,93971.0,93969.0,0.053312]
[1735739615368,0.053311,93971.0,93969.0,0.414112]
[1735739616364,0.05790774,93970.0,93969.0,0.414112]
[1735739620670,0.05790774,93970.0,93969.0,0.3608]
[1735739621870,0.05790774,93970.0,93969.0,0.414112]
[1735739622772,0.056311,93970.0,93969.0,0.414112]
[1735739624767,0.056311,93970.0,93969.0,0.3608]
[1735739625477,0.056311,93970.0,93969.0,0.414112]
[1735739626576,0.003,93970.0,93969.0,0.414112]
[1735739628672,0.01552735,93982.0,93969.0,0.3608]
[1735739628980,0.05331,93976.0,93975.0,0.053309]
[1735739629481,0.053312,93970.0,93969.0,0.3608]
[1735739633293,0.060312,93970.0,93969.0,0.3618]
[1735739633788,0.07634683,93970.0,93969.0,0.3618]
[1735739635593,0.060312,93970.0,93969.0,0.3618]
[1735739637288,0.053312,93970.0,93969.0,0.3608]
[1735739637494,0.060312,93970.0,93969.0,0.3608]
[1735739640289,0.053321,93954.0,93953.0,0.3608]
[1735739640594,0.053321,93954.0,93953.0,0.414121]
[1735739644187,0.053321,93954.0,93953.0,0.415121]
[1735739644899,0.053321,93954.0,93953.0,0.414121]
[1735739646396,0.056321,93954.0,93953.0,0.414121]
[1735739651491,0.056321,93954.0,93953.0,0.43009939]
[1735739651994,0.056321,93954.0,93953.0,0.414121]
[1735739654702,0.003,93954.0,93953.0,0.414121]
[1735739654901,0.053311,93971.0,93970.0,0.053311]
[1735739655096,0.053311,93971.0,93970.0,0.414111]
[1735739656508,0.059311,93971.0,93970.0,0.414111]
[1735739657508,0.059311,93971.0,93970.0,0.3608]
[1735739660101,0.07424866,93971.0,93970.0,0.3608]
[1735739666106,0.15445119,93971.0,93970.0,0.3608]
[1735739672112,0.15445119,93971.0,93957.0,0.053319]
[1735739672113,0.15445119,93971.0,93961.0,0.3608]
[1735739672314,0.053312,93970.0,93961.0,0.3608]
[1735739672518,0.053316,93962.0,93961.0,0.3608]
[1735739673618,0.054316,93962.0,93961.0,0.3608]
[1735739674619,0.054316,93962.0,93961.0,0.3618]
[1735739675310,0.054316,93962.0,93961.0,0.3608]
[1735739675512,0.054316,93962.0,93961.0,0.3618]
[1735739676219,0.054316,93962.0,93961.0,0.415117]
[1735739682919,0.054316,93962.0,93961.0,0.42973486]
[1735739684620,0.054316,93962.0,93961.0,0.415117]
[1735739685025,0.01919311,93979.0,93961.0,0.415117]
[1735739685321,0.053311,93971.0,93970.0,0.3608]
[1735739687422,0.058311,93971.0,93970.0,0.3618]
[1735739691727,0.058311,93971.0,93970.0,0.001]
[1735739705335,0.058311,93971.0,93970.0,0.0005968]
[1735739715636,0.005,93971.0,93969.0,0.3013523]
[1735739717739,0.005,93971.0,93970.0,0.0618]
[1735739718738,0.0339297,93979.0,93970.0,0.0618]
[1735739718943,0.005,93971.0,93970.0,0.0618]
[1735739719745,0.005,93971.0,93970.0,0.0628]
[1735739726452,0.005,93971.0,93970.0,0.001]
[1735739754673,0.3658,93971.0,93970.0,0.001]
[1735739758284,0.005,93971.0,93970.0,0.001]
[1735739783284,0.0617,93978.0,93970.0,0.001]
[1735739785693,0.01919311,93970.0,93960.0,0.3608]
[1735739785897,0.09075707,93970.0,93960.0,0.3608]
[1735739786091,0.01919311,93969.0,93968.0,0.3608]
[1735739787297,0.02219311,93969.0,93968.0,0.3608]
[1735739791503,0.003,93969.0,93968.0,0.3608]
[1735739795593,0.01844102,93969.0,93968.0,0.3608]
[1735739807717,0.003,93969.0,93968.0,0.3608]
[1735739808030,0.003,93969.0,93968.0,0.414113]
[1735739809327,0.003,93969.0,93968.0,0.3608]
[1735739837153,0.003,93969.0,93968.0,0.414113]
[1735739838946,0.02078962,93988.0,93968.0,0.414113]
[1735739839148,0.00159651,93988.0,93987.0,0.3608]
[1735739840043,0.3,94000.0,93987.0,0.3608]
[1735739840251,0.07156396,93997.0,93987.0,0.3608]
[1735739840449,0.009,93988.0,93987.0,0.415102]
[1735739841351,0.3,94000.0,93999.0,0.053295]
[1735739841559,0.3,94000.0,93999.0,0.414095]
[1735739842465,0.309,94000.0,93999.0,0.415095]
[1735739843572,0.2591,94000.0,93999.0,0.415095]
[1735739845563,0.2501,94000.0,93999.0,0.414095]
[1735739845767,0.2551,94000.0,93999.0,0.415095]
[1735739846171,0.2501,94000.0,93999.0,0.414095]
[1735739846368,0.2551,94000.0,93999.0,0.415095]
[1735739847571,0.2551,94000.0,93999.0,0.3618]
[1735739848766,0.25515793,94000.0,93999.0,0.3618]
[1735739852980,0.25515793,94000.0,93999.0,0.415095]
[1735739858478,0.25015793,94000.0,93999.0,0.415095]
[1735739858786,0.25015793,94000.0,93999.0,0.418095]
[1735739859184,0.25115793,94000.0,93999.0,0.414095]
[1735739867881,9.3e-07,94000.0,93999.0,0.714095]
[1735739868580,9.3e-07,94000.0,93999.0,1.074895]
[1735739869003,0.2,94025.0,93999.0,1.0216]
[1735739869188,0.2,94025.0,94024.0,0.774881]
[1735739872081,0.205,94025.0,94024.0,0.775881]
[1735739873093,0.2,94025.0,94024.0,0.774881]
[1735739873293,0.202,94025.0,94024.0,0.774881]
[1735739875387,0.2,94025.0,94024.0,0.774881]
[1735739875593,0.202,94025.0,94024.0,0.774881]
[1735739891604,0.02036743,94025.0,94024.0,0.774881]
[1735739905921,0.02036743,94025.0,94024.0,0.775881]
[1735739906115,0.01836743,94025.0,94024.0,0.775881]
[1735739906317,0.01836743,94025.0,94024.0,0.776881]
[1735739907625,0.01836743,94025.0,94024.0,0.775881]
[1735739907925,0.01836743,94025.0,94024.0,0.776881]
[1735739908318,0.02036743,94025.0,94024.0,0.775881]
[1735739908518,0.02036743,94025.0,94024.0,0.774881]
[1735739918018,0.02036743,94025.0,94024.0,0.7216]
[1735739918425,0.02036743,94025.0,94024.0,0.774881]
[1735739919034,0.17302012,94050.0,94024.0,0.774881]
[1735739919225,0.053268,94049.0,94048.0,0.3608]
[1735739920724,0.056268,94049.0,94048.0,0.3618]
[1735739922432,0.0007,94050.0,94048.0,0.415068]
[1735739922730,0.053252,94077.0,94065.0,0.053258]
[1735739922927,0.053252,94077.0,94066.0,0.7216]
[1735739923129,0.07146074,94080.0,94066.0,0.7216]
[1735739923324,0.01256774,94073.0,94066.0,0.7216]
[1735739923538,0.053253,94074.0,94066.0,0.7216]
[1735739924038,0.00259535,94067.0,94066.0,0.7216]
[1735739924336,0.00159535,94067.0,94066.0,0.34679492]
[1735739924532,0.00259535,94067.0,94066.0,0.34779492]
[1735739929427,0.053242,94094.0,94066.0,0.34779492]
[1735739929732,0.05380201,94094.0,94090.0,0.053243]
[1735739929939,0.053242,94094.0,94090.0,0.053243]
[1735739930332,0.0315,94099.0,94090.0,0.053243]
[1735739930528,0.0315,94099.0,94098.0,0.053239]
[1735739931440,0.2,94100.0,94098.0,0.053239]
[1735739932031,0.001,94099.0,94098.0,0.054239]
[1735739932226,0.001,94099.0,94098.0,0.055239]
[1735739933724,0.001,94099.0,94098.0,0.054239]
[1735739934328,0.2,94100.0,94098.0,0.054239]
[1735739934733,0.253238,94100.0,94098.0,0.054239]
[1735739937737,0.253238,94100.0,94098.0,0.001]
[1735739937932,0.253238,94100.0,94099.0,0.01705901]
[1735739938243,0.253238,94100.0,94098.0,0.001]
[1735739938635,0.253238,94100.0,94099.0,0.053239]
[1735739939339,0.2,94100.0,94099.0,0.053239]
[1735739940330,0.253238,94100.0,94099.0,0.053239]
[1735739941242,0.253238,94100.0,94099.0,0.001]
[1735739941637,0.05324,94097.0,94096.0,0.3608]
[1735739942044,0.05324,94097.0,94096.0,0.41404]
[1735739943453,0.0315,94098.0,94097.0,0.05324]
[1735739947943,0.0315,94098.0,94097.0,0.04791601]
[1735739948146,0.0315,94098.0,94097.0,0.03369667]
[1735739950848,0.0321,94099.0,94098.0,0.053239]
[1735739953460,0.2,94100.0,94099.0,0.053239]
[1735739962463,0.2,94100.0,94099.0,0.03786186]
[1735739962660,0.2,94100.0,94099.0,0.22803088]
[1735739963262,0.2,94100.0,94099.0,0.03786186]
[1735739965470,0.253238,94100.0,94099.0,0.03786186]
[1735739965870,0.2,94100.0,94099.0,0.03786186]
[1735739972568,0.2,94100.0,94096.0,0.31196903]
[1735739973073,0.2,94100.0,94099.0,0.0220421]
[1735739981373,0.03874641,94133.0,94105.0,0.14270076]
[1735739981572,0.03874641,94133.0,94132.0,0.05322]
[1735739982369,0.03874641,94133.0,94130.0,0.32733227]
[1735739982576,0.03874641,94133.0,94130.0,0.28593028]
[1735739982878,0.03874641,94133.0,94132.0,0.05322]
[1735739983469,0.03874641,94133.0,94132.0,0.05422]
[1735739989781,0.45276541,94133.0,94132.0,0.001]
[1735739989968,0.05323,94115.0,94100.0,0.10863028]
[1735739990173,0.4227,94114.0,94105.0,0.053235]
[1735739990375,0.053234,94108.0,94106.0,0.053235]
[1735739991174,0.42326001,94114.0,94095.0,0.032]
[1735739991376,0.053239,94101.0,94100.0,0.053238]
[1735739992582,0.053239,94101.0,94100.0,0.056238]
[1735739993580,0.053239,94101.0,94100.0,0.064238]
[1735739993769,0.0313,94113.0,94100.0,0.011]
[1735739993969,0.0313,94113.0,94103.0,0.10863028]
[1735739994170,0.053232,94110.0,94109.0,0.053233]
[1735739995774,0.053234,94107.0,94105.0,0.053235]
[1735739996980,5.326e-05,94106.0,94105.0,0.053235]
[1735739997977,5.326e-05,94106.0,94096.0,0.10863028]
[1735739998377,5.326e-05,94106.0,94103.0,0.053236]
[1735739998675,0.053235,94105.0,94103.0,0.053236]
[1735740000274,0.053236,94104.0,94103.0,0.053236]
[1735740000888,0.053239,94099.0,94097.0,0.05324]
[1735740001088,0.053239,94099.0,94098.0,0.053239]
[1735740001291,0.053236,94104.0,94090.0,0.3608]
[1735740001482,0.053236,94104.0,94102.0,0.053237]
[1735740002081,0.053236,94103.0,94102.0,0.053237]
[1735740010089,0.053236,94103.0,94090.0,0.48166543]
[1735740010090,0.36085326,94106.0,94105.0,0.053235]
[1735740010392,0.41408826,94106.0,94105.0,0.053235]
[1735740011183,0.41508826,94106.0,94105.0,0.053235]
[1735740012489,0.41708826,94106.0,94105.0,0.053235]
[1735740014289,0.41708826,94106.0,94105.0,0.04791151]
[1735740018998,0.36385326,94106.0,94105.0,0.04791151]
[1735740019994,0.36385326,94106.0,94105.0,0.06008301]
[1735740020500,0.36285326,94106.0,94105.0,0.06008301]
[1735740021795,0.36085326,94106.0,94105.0,0.06008301]
[1735740026108,5.326e-05,94106.0,94105.0,0.06008301]
[1735740026300,5.326e-05,94106.0,94105.0,0.12378301]
[1735740026597,5.326e-05,94106.0,94105.0,1.62378301]
[1735740027004,5.326e-05,94106.0,94105.0,0.12378301]
[1735740027206,5.326e-05,94106.0,94105.0,0.42378301]
[1735740027404,5.326e-05,94106.0,94105.0,0.78658301]
[1735740027605,5.326e-05,94106.0,94105.0,2.28658301]
[1735740028208,5.326e-05,94106.0,94105.0,0.78658301]
[1735740028509,5.326e-05,94106.0,94105.0,0.79258301]
[1735740029908,0.391,94145.0,94105.0,0.79258301]
[1735740029909,0.3608,94145.0,94105.0,0.79258301]
[1735740030111,0.3608,94145.0,94132.0,0.05322]
[1735740031515,0.01919311,94158.0,94132.0,0.35322]
[1735740031706,0.30056001,94200.0,94192.0,0.053186]
[1735740032024,0.30056001,94200.0,94156.0,0.053206]
[1735740032025,0.3,94200.0,94186.0,0.3608]
[1735740032215,0.3,94200.0,94197.0,0.3608]
[1735740032401,0.0308,94199.0,94187.0,0.3608]
[1735740032597,0.053192,94182.0,94176.0,0.3608]
[1735740033005,0.0332,94181.0,94176.0,0.3608]
[1735740033198,0.3608,94193.0,94176.0,0.32472001]
[1735740033505,0.3608,94193.0,94184.0,0.3608]
[1735740033506,0.053186,94193.0,94184.0,0.3608]
[1735740033818,0.0332,94198.0,94184.0,0.41399]
[1735740034003,0.053186,94192.0,94184.0,0.41399]
[1735740034403,0.05319,94186.0,94177.0,0.053195]
[1735740034602,0.3618,94193.0,94177.0,0.053195]
[1735740034804,0.053192,94183.0,94177.0,0.053195]
[1735740035703,0.3608,94193.0,94178.0,0.053194]
[1735740035704,0.053188,94189.0,94178.0,0.053194]
[1735740035903,0.053188,94189.0,94184.0,0.3608]
[1735740036107,0.053189,94188.0,94184.0,0.3608]
[1735740037103,0.05319,94186.0,94184.0,0.3608]
[1735740038614,0.003,94186.0,94184.0,0.3608]
[1735740038915,0.2631597,94200.0,94184.0,0.3608]
[1735740039107,0.3163417,94200.0,94190.0,0.16181728]
[1735740039308,0.2631597,94200.0,94190.0,0.053187]
[1735740039507,0.053184,94196.0,94190.0,0.053187]
[1735740040113,0.053185,94195.0,94190.0,0.053187]
[1735740040422,0.053187,94192.0,94184.0,0.3608]
[1735740041003,0.053187,94192.0,94186.0,0.053189]
[1735740041200,0.053187,94192.0,94184.0,0.3608]
[1735740041414,0.053187,94192.0,94187.0,0.053189]
[1735740041810,0.053187,94192.0,94187.0,0.04787011]
[1735740042016,0.053187,94192.0,94184.0,0.3608]
[1735740042212,0.056187,94192.0,94184.0,0.3608]
[1735740042418,0.056187,94192.0,94187.0,0.053189]
[1735740042419,0.053188,94189.0,94187.0,0.053189]
[1735740043114,0.053188,94189.0,94187.0,0.04269014]
[1735740044114,0.05319,94186.0,94184.0,0.3608]
[1735740045721,0.003,94186.0,94184.0,0.41399]
[1735740046211,0.053186,94193.0,94184.0,0.41399]
[1735740046417,0.003,94186.0,94184.0,0.41399]
[1735740046810,0.003,94186.0,94185.0,0.05319]
[1735740047918,0.053187,94190.0,94188.0,0.053188]
[1735740048318,0.053187,94190.0,94189.0,0.053188]
[1735740051525,0.054187,94190.0,94189.0,0.053188]
[1735740055719,0.001,94190.0,94189.0,0.053188]
[1735740057216,0.001,94190.0,94186.0,0.01133478]
[1735740057217,0.0314,94199.0,94186.0,0.01133478]
[1735740057418,0.2631597,94200.0,94197.0,0.3608]
[1735740057621,0.053182,94199.0,94198.0,0.053182]
[1735740058715,0.057182,94199.0,94198.0,0.053182]
[1735740059214,0.004,94199.0,94197.0,0.3608]
[1735740059414,0.004,94199.0,94198.0,0.053183]
[1735740059818,0.2631597,94200.0,94199.0,0.053182]
[1735740060023,0.00056001,94234.0,94233.0,0.053163]
[1735740060224,0.153159,94240.0,94233.0,0.3608]
[1735740060225,0.01173006,94239.0,94233.0,0.3608]
[1735740060415,0.02620917,94234.0,94233.0,0.26706689]
[1735740060615,0.02620917,94234.0,94233.0,0.32022989]
[1735740061218,0.1,94240.0,94239.0,0.05316]
[1735740061419,0.1,94240.0,94239.0,0.41396]
[1735740061929,0.1,94240.0,94239.0,0.9001872]
[1735740062124,0.3608,94266.0,94239.0,0.8470272]
[1735740062326,0.3608,94266.0,94250.0,0.10863028]
[1735740062529,0.3608,94266.0,94248.0,0.3608]
[1735740062830,0.054159,94240.0,94239.0,0.4871472]
[1735740063026,0.001,94240.0,94239.0,0.8470272]
[1735740063221,0.001,94240.0,94239.0,0.3608]
[1735740064726,0.053151,94254.0,94239.0,0.3608]
[1735740064930,0.053151,94254.0,94252.0,0.3608]
[1735740067124,0.3618,94266.0,94243.0,0.053157]
[1735740067125,0.3608,94258.0,94243.0,0.053157]
[1735740067340,0.053153,94251.0,94249.0,0.053154]
[1735740067536,0.053153,94251.0,94250.0,0.3608]
[1735740067918,0.053153,94251.0,94249.0,0.053154]
[1735740068630,0.0643,94250.0,94249.0,0.053154]
[1735740069220,0.0643,94250.0,94249.0,0.054154]
[1735740069732,0.031,94257.0,94249.0,0.001]
[1735740069920,0.00159201,94264.0,94260.0,0.053148]
[1735740070334,0.00159201,94264.0,94261.0,0.053147]
[1735740070532,0.00159201,94264.0,94262.0,0.053146]
[1735740070732,0.00159201,94264.0,94262.0,0.04223301]
[1735740071227,0.053148,94260.0,94255.0,0.41395]
[1735740071423,0.053148,94260.0,94257.0,0.18785224]
[1735740071623,0.053148,94260.0,94257.0,0.24100124]